[Event "8th RTU Open 2018"]
[Site "Riga"]
[Date "2018.08.12"]
[Round "9"]
[White "Annaberdiev, Meilis"]
[Black "Krupenski, Juri"]
[Result "1-0"]
[ECO "B90"]
[WhiteElo "2509"]
[BlackElo "2390"]
[Annotator "ChessBase"]
[PlyCount "79"]
[EventDate "2018.08.06"]
[EventType "swiss"]
[EventCountry "LAT"]
[SourceTitle "playchess.com"]
[Source "ChessBase"]
[SourceQuality "1"]
[TimeControl "5400+30"]

1. e4 {[%emt 0:00:00]} c5 {[%emt 0:00:00]} 2. Nf3 {[%emt 0:00:00]} d6 {[%emt 0:00:15]} 3. d4 {[%emt 0:00:00]} cxd4 {[%emt 0:00:04]} 4. Nxd4 {[%emt 0:00:00]} Nf6 {[%emt 0:00:04]} 5. Nc3 {[%emt 0:00:03]} a6 {[%emt 0:00:06]} 6. Nb3 {[%emt 0:00:04]} e6 {[%emt 0:02:18]} 7. g4 {[%emt 0:00:11]} h6 {[%emt 0:06:00]} 8. Bg2 {[%emt 0:00:32]} Nc6 {[%emt 0:00:32]} 9. f4 {[%emt 0:02:06]} Nd7 {[%emt 0:04:46]} 10. h4 {[%emt 0:10:17]} Be7 {[%emt 0:01:54]} 11. g5 {[%emt 0:00:59]} hxg5 {[%emt 0:00:07]} 12. hxg5 {[%emt 0:00:04]} Rxh1+ {[%emt 0:00:05]} 13. Bxh1 {[%emt 0:00:02]} Qb6 {[%emt 0:03:29]} 14. Kf1 {[%emt 0:24:07]} g6 {[%emt 0:01:32]} 15. Qe2 {[%emt 0:05:23]} Qc7 {[%emt 0:01:06]} 16. Bd2 {[%emt 0:13:48]} b6 {[%emt 0:06:10]} 17. Bf3 {[%emt 0:02:06]} Bb7 {[%emt 0:02:28]} 18. Kg2 {[%emt 0:02:38]} O-O-O {[%emt 0:00:37]} 19. Rh1 {[%emt 0:00:04]} Nc5 {[%emt 0:14:19]} 20. Be3 {[%emt 0:00:31]} f6 {[%emt 0:09:08]} 21. Rh7 {[%emt 0:12:27]} fxg5 {[%emt 0:00:46]} 22. Bg4 {[%emt 0:00:08]} Kb8 {[%emt 0:02:27]} 23. fxg5 {[%emt 0:02:34]} d5 {[%emt 0:28:52]} 24. Bxc5 {[%emt 0:04:08]} bxc5 {[%emt 0:00:22]} 25. Nxc5 {[%emt 0:00:12]} Nd4 {[%emt 0:02:24]} 26. Nxa6+ {[%emt 0:08:36]} Bxa6 {[%emt 0:00:04]} 27. Qxa6 {[%emt 0:00:03]} Qf4 {[%emt 0:05:36]} 28. Be2 {[%emt 0:01:54]} Qxg5+ {[%emt 0:01:09]} 29. Kh1 {[%emt 0:00:05]} dxe4 {[%emt 0:02:57]} 30. Nxe4 {[%emt 0:05:43]} Qc1+ {[%emt 0:00:13]} 31. Bf1 {[%emt 0:00:33]} Rf8 {[%emt 0:01:32]} 32. Ng3 {[%emt 0:00:06]} Nf5 {[%emt 0:00:48]} 33. Qb6+ {[%emt 0:00:49]} Ka8 {[%emt 0:00:07]} 34. Kh2 {[%emt 0:01:58]} Ne3 {[%emt 0:00:47]} 35. Bg2+ {[%emt 0:01:01]} Nxg2 {[%emt 0:00:13]} 36. Qa5+ {[%emt 0:00:03]} Kb8 {[%emt 0:00:04]} 37. Qe5+ {[%emt 0:00:05]} Ka8 {[%emt 0:00:15]} 38. Rxe7 {[%emt 0:00:57]} Qh6+ {[%emt 0:01:38]} 39. Kxg2 {[%emt 0:00:18]} Qd2+ {[%emt 0:00:16]} 40. Qe2 {[%emt 0:00:12]} 1-0

[Event "8th RTU Open 2018"]
[Site "Riga"]
[Date "2018.08.12"]
[Round "9"]
[White "Anurag, Mhamal"]
[Black "Zatonskih, Anna"]
[Result "1-0"]
[ECO "E04"]
[WhiteElo "2484"]
[BlackElo "2431"]
[Annotator "RC"]
[PlyCount "75"]
[EventDate "2018.08.06"]
[EventType "swiss"]
[EventCountry "LAT"]
[SourceTitle "playchess.com"]
[Source "ChessBase"]
[SourceQuality "1"]
[TimeControl "5400+30"]

1. c4 {[%emt 0:02:26]} Nf6 {[%emt 0:00:17]} 2. g3 {[%emt 0:00:12]} e6 {[%emt 0:00:14]} 3. Bg2 {[%emt 0:00:39]} d5 {[%emt 0:00:11]} 4. d4 {[%emt 0:03:45]} dxc4 {[%emt 0:05:13]} 5. Nf3 {[%emt 0:00:05]} Bb4+ {[%emt 0:00:16]} 6. Bd2 {[%emt 0:00:09]} c5 {[%emt 0:01:57]} 7. Bxb4 {[%emt 0:16:45]} cxb4 {[%emt 0:01:26]} 8. a3 {[%emt 0:00:04]} O-O {[%emt 0:29:38]} 9. axb4 {[%emt 0:01:07]} Nd5 {[%emt 0:00:44]} 10. b5 {[%emt 0:07:49]} Bd7 {[%emt 0:02:33]} 11. Na3 {[%emt 0:04:46]} a6 {[%emt 0:09:52]} 12. Nxc4 {[%emt 0:00:41]} Bxb5 {[%emt 0:00:20]} 13. b3 {[%emt 0:00:44]} Nc6 {[%emt 0:00:59]} 14. Qd2 {[%emt 0:00:52]} a5 {[%emt 0:00:40]} 15. O-O {[%emt 0:00:51]} Ndb4 {[%emt 0:07:35]} 16. Rfc1 {[%emt 0:01:30]} a4 {[%emt 0:03:40]} 17. Na3 {[%emt 0:06:18]} Qb6 {[%emt 0:02:18]} 18. Nxb5 {[%emt 0:02:27]} Qxb5 {[%emt 0:00:12]} 19. Rc5 {[%emt 0:01:06]} Qb6 {[%emt 0:03:53]} 20. bxa4 {[%emt 0:06:19]} Rfd8 {[%emt 0:00:34]} 21. Rb5 {[%emt 0:00:52]} Qxb5 {[%emt 0:10:58]} 22. axb5 {[%emt 0:00:08]} Rxa1+ {[%emt 0:00:05]} 23. Bf1 {[%emt 0:00:03]} Ra2 {[%emt 0:07:20]} 24. Qc3 {[%emt 0:00:37]} Nd5 {[%emt 0:02:07]} 25. Qb3 {[%emt 0:00:16]} Ncb4 {[%emt 0:00:44]} 26. e4 {[%emt 0:00:10]} Rda8 {[%emt 0:00:40]} 27. exd5 {[%emt 0:00:55]} Nxd5 {[%emt 0:00:20]} 28. Ne5 {[%emt 0:08:35]} Ra1 {[%emt 0:01:42]} 29. Qf3 {[%emt 0:00:29]} f6 {[%emt 0:00:22]} 30. Qg4 {[%emt 0:01:24]} Re8 {[%emt 0:01:40]} 31. Nc4 {[%emt 0:01:19]} g6 {[%emt 0:00:39]} 32. Nd6 {[%emt 0:02:56]} Re7 {[%emt 0:00:26]} 33. Nxb7 {[%emt 0:00:16]} f5 {[%emt 0:01:23]} 34. Qe2 {[%emt 0:00:06]} f4 {[%emt 0:00:40]} 35. Nd8 {[%emt 0:00:45]} fxg3 {[%emt 0:02:23]} 36. hxg3 {[%emt 0:00:06]} Re8 {[%emt 0:00:54]} 37. Nxe6 {[%emt 0:00:24]} Nc7 {[%emt 0:00:40]} 38. d5 {[%emt 0:00:04]} 1-0

[Event "8th RTU Open 2018"]
[Site "Riga"]
[Date "2018.08.12"]
[Round "9"]
[White "Laurusas, Tomas"]
[Black "Ruiz Castillo, Joshua Daniel"]
[Result "1-0"]
[ECO "E15"]
[WhiteElo "2463"]
[BlackElo "2415"]
[Annotator "ChessBase"]
[PlyCount "71"]
[EventDate "2018.08.06"]
[EventType "swiss"]
[EventCountry "LAT"]
[SourceTitle "playchess.com"]
[Source "ChessBase"]
[SourceQuality "1"]
[TimeControl "5400+30"]

1. d4 {[%emt 0:04:55]} Nf6 {[%emt 0:00:00]} 2. c4 {[%emt 0:00:05]} e6 {[%emt 0:00:00]} 3. Nf3 {[%emt 0:00:08]} b6 {[%emt 0:00:00]} 4. g3 {[%emt 0:00:05]} Ba6 {[%emt 0:00:00]} 5. b3 {[%emt 0:00:04]} Bb4+ {[%emt 0:00:00]} 6. Bd2 {[%emt 0:00:05]} Be7 {[%emt 0:00:07]} 7. Bg2 {[%emt 0:00:10]} O-O {[%emt 0:00:13]} 8. Nc3 {[%emt 0:00:09]} c6 {[%emt 0:00:16]} 9. d5 {[%emt 0:15:52]} exd5 {[%emt 0:00:07]} 10. cxd5 {[%emt 0:00:05]} cxd5 {[%emt 0:00:07]} 11. O-O {[%emt 0:00:16]} Nc6 {[%emt 0:00:28]} 12. a4 {[%emt 0:06:27]} Re8 {[%emt 0:01:17]} 13. Bf4 {[%emt 0:08:04]} Bc5 {[%emt 0:13:41]} 14. Nb5 {[%emt 0:12:17]} d6 {[%emt 0:04:11]} 15. Bg5 {[%emt 0:08:09]} Nb4 {[%emt 0:05:50]} 16. Ne1 {[%emt 0:04:30]} h6 {[%emt 0:11:31]} 17. Bxf6 {[%emt 0:00:24]} Qxf6 {[%emt 0:00:06]} 18. Nd3 {[%emt 0:00:42]} Bxb5 {[%emt 0:05:44]} 19. axb5 {[%emt 0:00:09]} a5 {[%emt 0:00:03]} 20. bxa6 {[%emt 0:00:45]} Rxa6 {[%emt 0:00:07]} 21. Rxa6 {[%emt 0:00:25]} Nxa6 {[%emt 0:00:02]} 22. b4 {[%emt 0:00:38]} Bd4 {[%emt 0:01:25]} 23. e3 {[%emt 0:09:32]} Bc3 {[%emt 0:00:04]} 24. Qa4 {[%emt 0:00:28]} Nc7 {[%emt 0:00:02]} 25. Qc6 {[%emt 0:07:01]} Re7 {[%emt 0:00:30]} 26. Qxb6 {[%emt 0:00:09]} d4 {[%emt 0:00:13]} 27. e4 {[%emt 0:00:04]} Qe6 {[%emt 0:00:21]} 28. Qb8+ {[%emt 0:03:29]} Kh7 {[%emt 0:01:01]} 29. b5 {[%emt 0:01:15]} Qc4 {[%emt 0:02:13]} 30. b6 {[%emt 0:02:40]} Na6 {[%emt 0:05:19]} 31. Qd8 {[%emt 0:00:05]} Qe6 {[%emt 0:01:10]} 32. Qa8 {[%emt 0:03:29]} Qc4 {[%emt 0:00:54]} 33. e5 {[%emt 0:00:23]} dxe5 {[%emt 0:00:01]} 34. b7 {[%emt 0:03:48]} g6 {[%emt 0:00:50]} 35. Qd8 {[%emt 0:03:16]} Qe6 {[%emt 0:04:09]} 36. Nc5 {[%emt 0:00:16]} 1-0

[Event "8th RTU Open 2018"]
[Site "Riga"]
[Date "2018.08.12"]
[Round "9"]
[White "Merry, Alan B"]
[Black "Gurvich, Vitaly"]
[Result "1-0"]
[ECO "B12"]
[WhiteElo "2445"]
[BlackElo "2272"]
[Annotator "NA RC"]
[PlyCount "137"]
[EventDate "2018.08.06"]
[EventType "swiss"]
[EventCountry "LAT"]
[SourceTitle "playchess.com"]
[Source "ChessBase"]
[SourceQuality "1"]
[TimeControl "5400+30"]

1. e4 {[%emt 0:00:00]} c6 {[%emt 0:00:00]} 2. d4 {[%emt 0:00:00]} d5 {[%emt 0:00:00]} 3. e5 {[%emt 0:00:00]} Bf5 {[%emt 0:00:00]} 4. Nc3 {[%emt 0:00:00]} e6 {[%emt 0:00:00]} 5. g4 {[%emt 0:00:00]} Bg6 {[%emt 0:00:02]} 6. Nge2 {[%emt 0:00:00]} c5 {[%emt 0:01:38]} 7. Be3 {[%emt 0:00:00]} Nc6 {[%emt 0:01:02]} 8. dxc5 {[%emt 0:00:03]} Nxe5 {[%emt 0:03:02]} 9. Nd4 {[%emt 0:00:11]} Bxc5 {[%emt 0:16:38]} 10. Bb5+ {[%emt 0:00:25]} Nd7 {[%emt 0:02:41]} 11. Nxe6 {[%emt 0:00:08]} fxe6 {[%emt 0:00:35]} 12. Bxc5 {[%emt 0:00:02]} a6 {[%emt 0:03:13]} 13. Bxd7+ {[%emt 0:00:16]} Qxd7 {[%emt 0:00:01]} 14. Qe2 {[%emt 0:14:28]} Nf6 {[%emt 0:01:43]} 15. O-O-O {[%emt 0:01:54]} Rc8 {[%emt 0:00:30]} 16. Bd4 {[%emt 0:02:15]} O-O {[%emt 0:08:02]} 17. h4 {[%emt 0:06:33]} h5 {[%emt 0:06:23]} 18. Rdg1 {[%emt 0:34:35]} b5 {[%emt 0:16:24]} 19. gxh5 {[%emt 0:07:55]} Bxh5 {[%emt 0:01:51]} 20. Qe5 {[%emt 0:03:22]} b4 {[%emt 0:01:54]} 21. Qg5 {[%emt 0:06:42]} Qf7 {[%emt 0:12:37]} 22. Na4 {[%emt 0:07:40]} Bf3 {[%emt 0:04:10]} 23. Rh3 {[%emt 0:00:42]} Rc4 {[%emt 0:02:34]} 24. Rxf3 {[%emt 0:00:50]} Rxd4 {[%emt 0:00:06]} 25. Nc5 {[%emt 0:00:08]} Re4 {[%emt 0:05:43]} 26. Nxe4 {[%emt 0:00:26]} dxe4 {[%emt 0:00:03]} 27. Re3 {[%emt 0:02:11]} Rc8 {[%emt 0:07:14]} 28. Qa5 {[%emt 0:02:56]} Nd5 {[%emt 0:01:19]} 29. Reg3 {[%emt 0:03:54]} Qxf2 {[%emt 0:01:46]} 30. Rxg7+ {[%emt 0:00:03]} Kh8 {[%emt 0:01:59]} 31. Qa4 {[%emt 0:01:34]} Rf8 {[%emt 0:01:45]} 32. Qxa6 {[%emt 0:03:11]} Ne3 {[%emt 0:00:33]} 33. Kb1 {[%emt 0:01:53]} Qxc2+ {[%emt 0:00:25]} 34. Ka1 {[%emt 0:00:01]} Qf2 {[%emt 0:00:35]} 35. Qb5 {[%emt 0:01:09]} Qf5 {[%emt 0:00:23]} 36. R7g5 {[%emt 0:01:38]} Qxb5 {[%emt 0:00:37]} 37. Rxb5 {[%emt 0:00:02]} Rf5 {[%emt 0:00:19]} 38. Rb6 {[%emt 0:00:25]} Rf6 {[%emt 0:00:39]} 39. a4 {[%emt 0:01:01]} bxa3 {[%emt 0:00:16]} 40. bxa3 {[%emt 0:00:02]} Nd5 {[%emt 0:00:09]} 41. Rb8+ {[%emt 0:00:54]} Kh7 {[%emt 0:00:01]} 42. Kb2 {[%emt 0:00:45]} e3 {[%emt 0:00:13]} 43. a4 {[%emt 0:00:42]} Rf2+ {[%emt 0:00:16]} 44. Kb3 {[%emt 0:00:05]} e2 {[%emt 0:00:35]} 45. Re1 {[%emt 0:00:52]} Ne3 {[%emt 0:01:40]} 46. Re8 {[%emt 0:00:26]} Ng2 {[%emt 0:00:42]} 47. Re7+ {[%emt 0:00:10]} Kh8 {[%emt 0:00:34]} 48. Rc1 {[%emt 0:00:32]} Rf3+ {[%emt 0:00:35]} 49. Kb2 {[%emt 0:00:45]} Rf8 {[%emt 0:00:29]} 50. Rxe6 {[%emt 0:00:01]} Rf2 {[%emt 0:00:32]} 51. Kb3 {[%emt 0:00:27]} Kg7 {[%emt 0:00:30]} 52. Rc7+ {[%emt 0:00:51]} Kf8 {[%emt 0:00:16]} 53. Rce7 {[%emt 0:00:33]} Nf4 {[%emt 0:00:39]} 54. Re4 {[%emt 0:00:40]} Rf3+ {[%emt 0:00:34]} 55. Kc4 {[%emt 0:00:20]} Ra3 {[%emt 0:00:31]} 56. Kb5 {[%emt 0:00:35]} Rb3+ {[%emt 0:00:31]} 57. Ka6 {[%emt 0:00:24]} Nd5 {[%emt 0:00:29]} 58. R7e5 {[%emt 0:00:40]} Nb4+ {[%emt 0:00:23]} 59. Kb5 {[%emt 0:00:35]} Nd3+ {[%emt 0:00:38]} 60. Kc4 {[%emt 0:00:08]} Nxe5+ {[%emt 0:00:29]} 61. Kxb3 {[%emt 0:00:35]} Nf3 {[%emt 0:00:16]} 62. Rxe2 {[%emt 0:00:10]} Nd4+ {[%emt 0:00:01]} 63. Kc4 Nxe2 {[%emt 0:00:11]} 64. a5 {[%emt 0:00:03]} Nf4 {[%emt 0:00:58]} 65. a6 {[%emt 0:00:01]} Ne6 {[%emt 0:00:04]} 66. a7 {[%emt 0:00:03]} Nc7 {[%emt 0:00:03]} 67. Kc5 {[%emt 0:00:07]} Ke7 {[%emt 0:00:28]} 68. Kc6 {[%emt 0:00:04]} Kd8 {[%emt 0:00:09]} 69. h5 {[%emt 0:00:08]} 1-0

[Event "8th RTU Open 2018"]
[Site "Riga"]
[Date "2018.08.12"]
[Round "9"]
[White "Korchmar, Vasiliy"]
[Black "Maiorov, Nikita"]
[Result "1/2-1/2"]
[ECO "A40"]
[WhiteElo "2415"]
[BlackElo "2504"]
[Annotator "ChessBase"]
[PlyCount "53"]
[EventDate "2018.08.06"]
[EventType "swiss"]
[EventCountry "LAT"]
[SourceTitle "playchess.com"]
[Source "ChessBase"]
[SourceQuality "1"]
[TimeControl "5400+30"]

1. d4 {[%emt 0:00:00]} Nf6 {[%emt 0:00:11]} 2. c4 {[%emt 0:00:00]} e6 {[%emt 0:00:19]} 3. g3 {[%emt 0:00:59]} Bb4+ {[%emt 0:00:14]} 4. Nd2 {[%emt 0:00:34]} a5 {[%emt 0:03:09]} 5. Bg2 {[%emt 0:03:25]} O-O {[%emt 0:00:05]} 6. Ngf3 {[%emt 0:00:40]} b6 {[%emt 0:00:23]} 7. Ne5 {[%emt 0:02:43]} Ra7 {[%emt 0:00:22]} 8. O-O {[%emt 0:00:35]} Ba6 {[%emt 0:10:37]} 9. Ndf3 {[%emt 0:14:42]} Be7 {[%emt 0:02:15]} 10. Qc2 {[%emt 0:02:46]} d6 {[%emt 0:08:28]} 11. Nd3 {[%emt 0:03:37]} c5 {[%emt 0:00:34]} 12. b3 {[%emt 0:03:57]} Qc8 {[%emt 0:05:38]} 13. Qd1 {[%emt 0:16:32]} Nbd7 {[%emt 0:05:01]} 14. Bb2 {[%emt 0:01:41]} Bb7 {[%emt 0:00:20]} 15. Rc1 {[%emt 0:03:40]} Qa8 {[%emt 0:00:17]} 16. Nfe1 {[%emt 0:11:45]} Bxg2 {[%emt 0:06:49]} 17. Nxg2 {[%emt 0:00:04]} a4 {[%emt 0:00:10]} 18. b4 {[%emt 0:04:11]} cxb4 {[%emt 0:10:43]} 19. Nxb4 {[%emt 0:00:06]} d5 {[%emt 0:00:16]} 20. Ba3 {[%emt 0:02:10]} dxc4 {[%emt 0:09:56]} 21. Rxc4 {[%emt 0:00:04]} b5 {[%emt 0:00:51]} 22. Rc1 {[%emt 0:03:10]} Nb6 {[%emt 0:02:28]} 23. Ne3 {[%emt 0:01:01]} Nfd5 {[%emt 0:05:11]} 24. Nbxd5 {[%emt 0:08:43]} Nxd5 {[%emt 0:00:05]} 25. Bxe7 {[%emt 0:00:04]} Nxe3 {[%emt 0:00:11]} 26. fxe3 {[%emt 0:00:03]} Rxe7 {[%emt 0:00:04]} 27. Qd2 {[%emt 0:03:22]} 1/2-1/2

[Event "8th RTU Open 2018"]
[Site "Riga"]
[Date "2018.08.12"]
[Round "9"]
[White "Wenninger, Philipp"]
[Black "Mishuchkov, Nikolai Mikhailovic"]
[Result "1/2-1/2"]
[ECO "E04"]
[WhiteElo "2408"]
[BlackElo "2307"]
[Annotator "NA"]
[PlyCount "22"]
[EventDate "2018.08.06"]
[EventType "swiss"]
[EventCountry "LAT"]
[SourceTitle "playchess.com"]
[Source "ChessBase"]
[SourceQuality "1"]
[TimeControl "5400+30"]

1. d4 {[%emt 0:00:00]} d5 {[%emt 0:00:00]} 2. c4 {[%emt 0:00:00]} e6 {[%emt 0:00:00]} 3. Nf3 {[%emt 0:00:15]} Nf6 {[%emt 0:00:45]} 4. g3 {[%emt 0:00:06]} dxc4 {[%emt 0:00:20]} 5. Bg2 {[%emt 0:00:08]} Nc6 {[%emt 0:00:38]} 6. O-O {[%emt 0:02:21]} Rb8 {[%emt 0:00:12]} 7. a4 {[%emt 0:12:54]} a6 {[%emt 0:01:29]} 8. e3 {[%emt 0:18:00]} Be7 {[%emt 0:08:08]} 9. Na3 {[%emt 0:11:59]} b5 10. axb5 axb5 11. b3 Bxa3 1/2-1/2

[Event "8th RTU Open 2018"]
[Site "Riga"]
[Date "2018.08.12"]
[Round "9"]
[White "Seeman, Tarvo"]
[Black "Chukavin, Kirill"]
[Result "1-0"]
[ECO "A16"]
[WhiteElo "2405"]
[BlackElo "2291"]
[Annotator "NA"]
[PlyCount "93"]
[EventDate "2018.08.06"]
[EventType "swiss"]
[EventCountry "LAT"]
[SourceTitle "playchess.com"]
[Source "ChessBase"]
[SourceQuality "1"]
[TimeControl "5400+30"]

1. c4 {[%emt 0:00:00]} Nf6 {[%emt 0:03:06]} 2. Nc3 {[%emt 0:00:00]} c6 {[%emt 0:01:06]} 3. e4 {[%emt 0:00:51]} e5 {[%emt 0:00:26]} 4. Nf3 {[%emt 0:00:20]} Bb4 {[%emt 0:00:30]} 5. Nxe5 {[%emt 0:03:30]} O-O {[%emt 0:00:38]} 6. Be2 {[%emt 0:01:35]} Re8 {[%emt 0:00:59]} 7. Nd3 {[%emt 0:00:39]} Bxc3 {[%emt 0:02:57]} 8. dxc3 {[%emt 0:00:07]} Nxe4 {[%emt 0:10:38]} 9. O-O {[%emt 0:00:13]} d5 {[%emt 0:02:40]} 10. cxd5 {[%emt 0:07:39]} Qxd5 {[%emt 0:05:42]} 11. Be3 {[%emt 0:06:56]} Bf5 {[%emt 0:02:45]} 12. Qb3 {[%emt 0:07:38]} Qxb3 {[%emt 0:19:54]} 13. axb3 {[%emt 0:00:07]} Nd7 {[%emt 0:00:59]} 14. Rfe1 {[%emt 0:05:44]} a6 {[%emt 0:09:34]} 15. Bf1 {[%emt 0:04:42]} h6 {[%emt 0:02:57]} 16. f3 {[%emt 0:03:18]} Nef6 {[%emt 0:04:18]} 17. b4 {[%emt 0:10:19]} Nd5 {[%emt 0:02:28]} 18. Bd4 {[%emt 0:00:45]} Rad8 {[%emt 0:01:50]} 19. Rxe8+ {[%emt 0:03:47]} Rxe8 {[%emt 0:00:02]} 20. Kf2 {[%emt 0:00:17]} Bxd3 {[%emt 0:06:12]} 21. Bxd3 {[%emt 0:00:10]} Ne5 {[%emt 0:00:15]} 22. Bf1 {[%emt 0:00:58]} Nf4 {[%emt 0:01:58]} 23. Rd1 {[%emt 0:05:22]} Rd8 {[%emt 0:04:43]} 24. Rd2 {[%emt 0:02:14]} Ne6 {[%emt 0:02:30]} 25. Be3 {[%emt 0:02:14]} Rxd2+ {[%emt 0:00:17]} 26. Bxd2 {[%emt 0:00:06]} f5 {[%emt 0:01:19]} 27. c4 {[%emt 0:02:43]} Kf7 {[%emt 0:06:26]} 28. Bc3 {[%emt 0:00:28]} Nd7 {[%emt 0:00:19]} 29. Bd3 {[%emt 0:06:42]} g6 {[%emt 0:01:13]} 30. h4 {[%emt 0:01:28]} Nf6 {[%emt 0:01:35]} 31. b5 {[%emt 0:03:42]} axb5 {[%emt 0:01:29]} 32. cxb5 {[%emt 0:00:06]} Nd5 {[%emt 0:00:17]} 33. Bd2 {[%emt 0:06:15]} h5 {[%emt 0:01:41]} 34. Bc4 {[%emt 0:03:05]} Nec7 {[%emt 0:00:27]} 35. bxc6 {[%emt 0:01:15]} bxc6 {[%emt 0:00:04]} 36. Bb4 {[%emt 0:03:20]} Ke6 {[%emt 0:01:09]} 37. Bc5 {[%emt 0:01:36]} Ne8 {[%emt 0:00:41]} 38. Ke2 {[%emt 0:01:10]} Nef6 {[%emt 0:01:18]} 39. Kd3 {[%emt 0:01:31]} Ne8 {[%emt 0:01:20]} 40. Kd4 {[%emt 0:02:45]} Nec7 {[%emt 0:00:10]} 41. Ba3 {[%emt 0:00:22]} Nb5+ {[%emt 0:00:49]} 42. Kc5 {[%emt 0:00:16]} Nd6 {[%emt 0:00:36]} 43. Ba2 {[%emt 0:00:53]} Nf7 {[%emt 0:00:38]} 44. Kxc6 {[%emt 0:00:34]} Ne5+ {[%emt 0:00:20]} 45. Kc5 {[%emt 0:00:13]} Nd3+ {[%emt 0:00:28]} 46. Kd4 {[%emt 0:00:17]} N3f4 {[%emt 0:00:18]} 47. Bc4 {[%emt 0:00:33]} 1-0

[Event "8th RTU Open 2018"]
[Site "Riga"]
[Date "2018.08.12"]
[Round "9"]
[White "Rostgaard, Tobias Valentin"]
[Black "Kuznecovs, Nikita"]
[Result "0-1"]
[ECO "C03"]
[WhiteElo "2386"]
[BlackElo "2280"]
[Annotator "NA"]
[PlyCount "71"]
[EventDate "2018.08.06"]
[EventType "swiss"]
[EventCountry "LAT"]
[SourceTitle "playchess.com"]
[Source "ChessBase"]
[SourceQuality "1"]
[TimeControl "5400+30"]

1. e4 {[%emt 0:00:00]} e6 {[%emt 0:00:00]} 2. d4 {[%emt 0:00:00]} d5 {[%emt 0:00:00]} 3. Nd2 {[%emt 0:00:00]} Be7 {[%emt 0:00:00]} 4. e5 {[%emt 0:00:12]} c5 {[%emt 0:00:00]} 5. c3 {[%emt 0:00:07]} Nc6 {[%emt 0:00:00]} 6. Bd3 {[%emt 0:00:17]} Qb6 {[%emt 0:00:54]} 7. Ndf3 {[%emt 0:00:19]} cxd4 {[%emt 0:02:43]} 8. cxd4 {[%emt 0:00:07]} Bd7 {[%emt 0:02:17]} 9. Ne2 {[%emt 0:00:19]} Nh6 {[%emt 0:04:27]} 10. Bxh6 {[%emt 0:05:28]} gxh6 {[%emt 0:00:06]} 11. O-O {[%emt 0:00:29]} Qxb2 {[%emt 0:07:55]} 12. Rb1 {[%emt 0:00:43]} Qxa2 {[%emt 0:00:22]} 13. Rxb7 {[%emt 0:01:45]} Nb4 {[%emt 0:16:03]} 14. Nc3 {[%emt 0:09:51]} Qa5 {[%emt 0:01:48]} 15. Nb5 {[%emt 0:03:49]} Bc6 {[%emt 0:02:14]} 16. Nc7+ {[%emt 0:10:20]} Kd8 {[%emt 0:01:20]} 17. Rxb4 {[%emt 0:00:59]} Qxb4 {[%emt 0:02:19]} 18. Nxa8 {[%emt 0:00:11]} Bxa8 {[%emt 0:00:07]} 19. Qa1 {[%emt 0:01:30]} Qb6 {[%emt 0:11:35]} 20. Rb1 {[%emt 0:00:34]} Qc7 {[%emt 0:00:02]} 21. Qa6 {[%emt 0:11:43]} Bc6 {[%emt 0:04:53]} 22. Rc1 {[%emt 0:05:20]} Bb7 {[%emt 0:02:54]} 23. Rxc7 {[%emt 0:05:58]} Bxa6 {[%emt 0:00:24]} 24. Rxa7 {[%emt 0:00:07]} Bc8 {[%emt 0:06:50]} 25. Bb5 {[%emt 0:02:31]} Rg8 {[%emt 0:00:57]} 26. g3 {[%emt 0:00:29]} h5 {[%emt 0:01:05]} 27. h4 {[%emt 0:02:48]} h6 {[%emt 0:00:21]} 28. Kf1 {[%emt 0:01:45]} Rg4 {[%emt 0:01:29]} 29. Ke2 {[%emt 0:04:21]} f6 {[%emt 0:00:30]} 30. exf6 {[%emt 0:10:42]} Bxf6 {[%emt 0:00:07]} 31. Ke3 {[%emt 0:02:00]} Re4+ {[%emt 0:03:04]} 32. Kd3 {[%emt 0:00:09]} e5 {[%emt 0:00:06]} 33. Rf7 {[%emt 0:02:18]} Bf5 {[%emt 0:03:21]} 34. Kd2 {[%emt 0:00:40]} Bg4 {[%emt 0:01:15]} 35. Rxf6 {[%emt 0:00:18]} Ke7 {[%emt 0:00:06]} 36. dxe5 {[%emt 0:00:13]} 0-1

[Event "8th RTU Open 2018"]
[Site "Riga"]
[Date "2018.08.12"]
[Round "9"]
[White "Seyb, Alexander"]
[Black "Praggnanandhaa, R."]
[Result "1-0"]
[ECO "B41"]
[WhiteElo "2383"]
[BlackElo "2532"]
[Annotator "ChessBase"]
[PlyCount "75"]
[EventDate "2018.08.06"]
[EventType "swiss"]
[EventCountry "LAT"]
[SourceTitle "playchess.com"]
[Source "ChessBase"]
[SourceQuality "1"]
[TimeControl "5400+30"]

1. e4 {[%emt 0:00:00]} c5 {[%emt 0:00:07]} 2. Nf3 {[%emt 0:00:00]} e6 {[%emt 0:00:04]} 3. d4 {[%emt 0:00:00]} cxd4 {[%emt 0:00:06]} 4. Nxd4 {[%emt 0:00:00]} a6 {[%emt 0:00:03]} 5. c4 {[%emt 0:00:00]} Nf6 {[%emt 0:00:10]} 6. Nc3 {[%emt 0:00:03]} Qc7 {[%emt 0:00:03]} 7. Be2 {[%emt 0:00:10]} b6 {[%emt 0:11:44]} 8. f4 {[%emt 0:00:07]} d6 {[%emt 0:03:14]} 9. O-O {[%emt 0:01:23]} Bb7 {[%emt 0:02:28]} 10. f5 {[%emt 0:00:25]} e5 {[%emt 0:03:35]} 11. Nc2 {[%emt 0:00:15]} Nbd7 {[%emt 0:16:12]} 12. Ne3 {[%emt 0:00:14]} Nxe4 {[%emt 0:07:02]} 13. Ned5 {[%emt 0:03:35]} Qc5+ {[%emt 0:04:57]} 14. Be3 {[%emt 0:00:08]} Nxc3 {[%emt 0:00:13]} 15. bxc3 {[%emt 0:00:22]} Qc8 {[%emt 0:07:42]} 16. f6 {[%emt 0:30:16]} Nxf6 {[%emt 0:03:37]} 17. Rxf6 {[%emt 0:01:54]} Bxd5 {[%emt 0:01:22]} 18. Qxd5 {[%emt 0:02:12]} gxf6 {[%emt 0:00:04]} 19. Bg4 {[%emt 0:02:09]} Qxg4 {[%emt 0:03:09]} 20. Qxa8+ {[%emt 0:00:08]} Ke7 {[%emt 0:00:13]} 21. Qb7+ {[%emt 0:00:19]} Qd7 {[%emt 0:00:47]} 22. Qxb6 {[%emt 0:00:07]} Ke6 {[%emt 0:17:15]} 23. Qxa6 {[%emt 0:18:40]} Be7 {[%emt 0:05:35]} 24. c5 {[%emt 0:13:03]} Qc8 {[%emt 0:03:24]} 25. Qd3 {[%emt 0:07:44]} Qc6 {[%emt 0:02:48]} 26. Rf1 {[%emt 0:02:55]} e4 {[%emt 0:02:52]} 27. Qe2 {[%emt 0:00:01]} f5 {[%emt 0:02:50]} 28. c4 {[%emt 0:03:47]} dxc5 {[%emt 0:00:43]} 29. Qh5 {[%emt 0:00:10]} f6 {[%emt 0:00:21]} 30. Qxf5+ {[%emt 0:01:59]} Kf7 {[%emt 0:00:01]} 31. Rf4 {[%emt 0:01:26]} Qb7 {[%emt 0:01:54]} 32. h4 {[%emt 0:01:52]} Qb1+ {[%emt 0:00:47]} 33. Kh2 {[%emt 0:01:14]} Qe1 {[%emt 0:00:28]} 34. Qh5+ {[%emt 0:01:32]} Kf8 {[%emt 0:00:21]} 35. Bxc5 {[%emt 0:00:54]} Bxc5 {[%emt 0:00:42]} 36. Qxc5+ {[%emt 0:00:47]} Kf7 {[%emt 0:00:04]} 37. Qd5+ {[%emt 0:00:13]} Kg7 {[%emt 0:00:07]} 38. Qd7+ {[%emt 0:00:20]} 1-0

[Event "8th RTU Open 2018"]
[Site "Riga"]
[Date "2018.08.12"]
[Round "9"]
[White "Saveliev, Alexei"]
[Black "Petrov, Dmitri"]
[Result "0-1"]
[ECO "B01"]
[WhiteElo "2382"]
[BlackElo "2233"]
[Annotator "NA"]
[PlyCount "72"]
[EventDate "2018.08.06"]
[EventType "swiss"]
[EventCountry "LAT"]
[SourceTitle "playchess.com"]
[Source "ChessBase"]
[SourceQuality "1"]
[TimeControl "5400+30"]

1. e4 d5 2. exd5 Qxd5 3. Nc3 Qd8 4. d4 Nf6 5. Bc4 c6 6. Nf3 Bf5 7. Ne5 e6 8. O-O Be7 9. Re1 Nbd7 10. Bf4 h6 11. Bb3 g5 12. Bg3 h5 13. Qf3 g4 14. Qf4 Nxe5 15. Qxe5 h4 16. Bf4 Rh5 17. Qc7 Qxc7 18. Bxc7 Kd7 19. Be5 Nd5 20. Nxd5 exd5 21. Re2 Bg5 22. h3 gxh3 23. f3 hxg2 24. Kxg2 Rg8 25. Kh1 Bd8 26. Rg1 Rhg5 27. Rxg5 Rxg5 28. Bf4 Rg6 29. c3 Re6 30. Re5 Rxe5 31. Bxe5 Ke6 32. Bf4 Bd3 33. Bd1 Kf5 34. Bb8 Bg5 35. Bxa7 Kf4 36. Kg2 Ke3 0-1